[Event "*** SCC Grand Prix: Titled Tuesday Blitz"]
[Site "Chess.com"]
[Date "2020.07.14"]
[Round "3"]
[White "Forantes"]
[Black "iaraldinho"]
[Result "1/2-1/2"]
[WhiteElo "2362"]
[BlackElo "2543"]
[TimeControl "180+1"]
[EndTime "10:28:56 PDT"]
[Termination "Game drawn - insufficient material"]

1. Nf3 {[%clk 0:03:00.9]} 1... f5 {[%clk 0:02:59.6]} 2. g3 {[%clk 0:03:00.1]}
2... Nf6 {[%clk 0:02:59.8]} 3. Bg2 {[%clk 0:03:00.7]} 3... g6 {[%clk 0:03:00.2]}
4. d4 {[%clk 0:03:00.8]} 4... Bg7 {[%clk 0:03:00.7]} 5. O-O {[%clk 0:03:01.5]}
5... O-O {[%clk 0:03:01.1]} 6. c4 {[%clk 0:03:02.1]} 6... d6 {[%clk 0:03:01.3]}
7. Nc3 {[%clk 0:03:02.4]} 7... Qe8 {[%clk 0:03:00.3]} 8. d5 {[%clk 0:02:56.5]}
8... a5 {[%clk 0:03:00.1]} 9. Nd4 {[%clk 0:02:54.9]} 9... Na6 {[%clk 0:03:00]}
10. b3 {[%clk 0:02:45.5]} 10... Bd7 {[%clk 0:02:59.1]} 11. Bb2 {[%clk
0:02:44.9]} 11... c6 {[%clk 0:02:59.3]} 12. dxc6 {[%clk 0:02:38.2]} 12... bxc6
{[%clk 0:02:57.7]} 13. Re1 {[%clk 0:02:15.6]} 13... Nc5 {[%clk 0:02:55.1]} 14.
Qc2 {[%clk 0:01:57.2]} 14... Rb8 {[%clk 0:02:47.6]} 15. Rad1 {[%clk 0:01:44.8]}
15... a4 {[%clk 0:02:43.9]} 16. Ba3 {[%clk 0:01:37.9]} 16... axb3 {[%clk
0:02:42.2]} 17. axb3 {[%clk 0:01:37.7]} 17... Ne6 {[%clk 0:02:33.4]} 18. Nxe6
{[%clk 0:01:25.7]} 18... Bxe6 {[%clk 0:02:34.3]} 19. e4 {[%clk 0:01:25.4]} 19...
fxe4 {[%clk 0:02:28.4]} 20. Nxe4 {[%clk 0:01:24.8]} 20... Nxe4 {[%clk
0:02:28.3]} 21. Qxe4 {[%clk 0:01:21.6]} 21... Bf5 {[%clk 0:02:20.3]} 22. Qxe7
{[%clk 0:00:57.8]} 22... Qxe7 {[%clk 0:02:16.2]} 23. Rxe7 {[%clk 0:00:58.7]}
23... Rxb3 {[%clk 0:02:15.5]} 24. Bxd6 {[%clk 0:00:56.5]} 24... Rd8 {[%clk
0:02:13.1]} 25. Bxc6 {[%clk 0:00:33.5]} 25... Bh3 {[%clk 0:02:04.1]} 26. Re8+
{[%clk 0:00:18.8]} 26... Rxe8 {[%clk 0:02:03]} 27. Bxe8 {[%clk 0:00:19.7]} 27...
Bd4 {[%clk 0:01:59]} 28. Bc6 {[%clk 0:00:08.6]} 28... Rb2 {[%clk 0:01:56.7]} 29.
Bd5+ {[%clk 0:00:06]} 29... Kg7 {[%clk 0:01:55.3]} 30. Bg2 {[%clk 0:00:06.4]}
30... Bxf2+ {[%clk 0:01:52.3]} 31. Kh1 {[%clk 0:00:06.2]} 31... Bxg2+ {[%clk
0:01:42]} 32. Kxg2 {[%clk 0:00:07.1]} 32... Bc5+ {[%clk 0:01:40]} 33. Kh3 {[%clk
0:00:04.9]} 33... Bxd6 {[%clk 0:01:38]} 34. Rxd6 {[%clk 0:00:05.8]} 34... Rc2
{[%clk 0:01:38.3]} 35. Rc6 {[%clk 0:00:04.9]} 35... h5 {[%clk 0:01:37.2]} 36. g4
{[%clk 0:00:02.6]} 36... hxg4+ {[%clk 0:01:35.3]} 37. Kg3 {[%clk 0:00:03.1]}
37... Kh6 {[%clk 0:01:33.5]} 38. Rc8 {[%clk 0:00:01.9]} 38... Kh5 {[%clk
0:01:31]} 39. c5 {[%clk 0:00:02.6]} 39... Rc3+ {[%clk 0:01:30.2]} 40. Kg2 {[%clk
0:00:02.5]} 40... Kh4 {[%clk 0:01:29.4]} 41. Rh8+ {[%clk 0:00:01.9]} 41... Kg5
{[%clk 0:01:28.9]} 42. Rc8 {[%clk 0:00:02.3]} 42... Kf4 {[%clk 0:01:24.8]} 43.
Rf8+ {[%clk 0:00:02.5]} 43... Ke5 {[%clk 0:01:24.6]} 44. Rc8 {[%clk 0:00:03.1]}
44... Kd5 {[%clk 0:01:22.3]} 45. c6 {[%clk 0:00:03.5]} 45... Kd6 {[%clk
0:01:21.1]} 46. Rg8 {[%clk 0:00:01.9]} 46... Kxc6 {[%clk 0:01:17.6]} 47. Rxg6+
{[%clk 0:00:02.4]} 47... Kd7 {[%clk 0:01:17.8]} 48. Rxg4 {[%clk 0:00:03]} 48...
Ke6 {[%clk 0:01:17.9]} 49. h4 {[%clk 0:00:03.4]} 49... Kf5 {[%clk 0:01:17.3]}
50. Rg3 {[%clk 0:00:03.8]} 50... Rc2+ {[%clk 0:01:17.4]} 51. Kh3 {[%clk
0:00:04.3]} 51... Rc1 {[%clk 0:01:17.6]} 52. Rg2 {[%clk 0:00:04.2]} 52... Rh1+
{[%clk 0:01:17.1]} 53. Kg3 {[%clk 0:00:03.9]} 53... Kg6 {[%clk 0:01:15.7]} 54.
Kg4 {[%clk 0:00:03.9]} 54... Kh6 {[%clk 0:01:15.4]} 55. Rf2 {[%clk 0:00:03.7]}
55... Rg1+ {[%clk 0:01:15.4]} 56. Kh3 {[%clk 0:00:04.3]} 56... Rg8 {[%clk
0:01:13.8]} 57. Rg2 {[%clk 0:00:04.6]} 57... Rxg2 {[%clk 0:01:13.4]} 58. Kxg2
{[%clk 0:00:05.5]} 58... Kh5 {[%clk 0:01:14.2]} 59. Kg3 {[%clk 0:00:06.4]} 59...
Kh6 {[%clk 0:01:15.1]} 60. Kh3 {[%clk 0:00:06.7]} 60... Kh7 {[%clk 0:01:16]} 61.
Kg3 {[%clk 0:00:07]} 61... Kh8 {[%clk 0:01:16.9]} 62. Kg4 {[%clk 0:00:07.5]}
62... Kh7 {[%clk 0:01:17.8]} 63. h5 {[%clk 0:00:08.4]} 63... Kh8 {[%clk
0:01:18.3]} 64. h6 {[%clk 0:00:09.3]} 64... Kh7 {[%clk 0:01:19.2]} 65. Kf3
{[%clk 0:00:08.8]} 65... Kh8 {[%clk 0:01:20.1]} 66. Kg3 {[%clk 0:00:09.7]} 66...
Kh7 {[%clk 0:01:21]} 67. Kf3 {[%clk 0:00:10.6]} 67... Kxh6 {[%clk 0:01:21.9]}
1/2-1/2

[Event "*** SCC Grand Prix: Titled Tuesday Blitz"]
[Site "Chess.com"]
[Date "2020.07.14"]
[Round "3"]
[White "VovenRogel"]
[Black "karinachess1"]
[Result "1-0"]
[WhiteElo "2725"]
[BlackElo "2510"]
[TimeControl "180+1"]
[EndTime "10:28:57 PDT"]
[Termination "VovenRogel won on time"]

1. d4 {[%clk 0:03:00.9]} 1... Nf6 {[%clk 0:02:56.4]} 2. c4 {[%clk 0:02:54.4]}
2... e6 {[%clk 0:02:53.4]} 3. Nf3 {[%clk 0:02:53.2]} 3... d5 {[%clk 0:02:50]} 4.
Nc3 {[%clk 0:02:48.2]} 4... Be7 {[%clk 0:02:47.7]} 5. Bf4 {[%clk 0:02:45.7]}
5... O-O {[%clk 0:02:46.1]} 6. e3 {[%clk 0:02:45.8]} 6... b6 {[%clk 0:02:46.2]}
7. Bd3 {[%clk 0:02:38.9]} 7... Bb7 {[%clk 0:02:41.8]} 8. cxd5 {[%clk 0:02:36.3]}
8... Nxd5 {[%clk 0:02:40]} 9. Nxd5 {[%clk 0:02:35.6]} 9... Qxd5 {[%clk
0:02:39.4]} 10. O-O {[%clk 0:02:28.5]} 10... c5 {[%clk 0:02:35]} 11. dxc5 {[%clk
0:02:16.9]} 11... Bxc5 {[%clk 0:02:30.6]} 12. Qc2 {[%clk 0:02:14.1]} 12... Qh5
{[%clk 0:02:07.8]} 13. Be4 {[%clk 0:02:12.1]} 13... Bxe4 {[%clk 0:02:01.9]} 14.
Qxe4 {[%clk 0:02:13]} 14... Nd7 {[%clk 0:02:02.4]} 15. a3 {[%clk 0:02:08]} 15...
Nf6 {[%clk 0:02:02]} 16. Qb7 {[%clk 0:02:07.1]} 16... Qd5 {[%clk 0:01:51.4]} 17.
Qa6 {[%clk 0:02:05.6]} 17... Qb3 {[%clk 0:01:46.6]} 18. Be5 {[%clk 0:02:00.5]}
18... Ne4 {[%clk 0:01:23]} 19. Rac1 {[%clk 0:01:21.6]} 19... Rfd8 {[%clk
0:00:56.2]} 20. Nd4 {[%clk 0:01:18.5]} 20... Qd5 {[%clk 0:00:47.4]} 21. Nf3
{[%clk 0:01:13.8]} 21... Qb3 {[%clk 0:00:43.8]} 22. Bc7 {[%clk 0:01:06.6]} 22...
Rd7 {[%clk 0:00:35.3]} 23. Qb7 {[%clk 0:01:04.3]} 23... Rf8 {[%clk 0:00:30.8]}
24. Ne5 {[%clk 0:01:01.1]} 24... Rd5 {[%clk 0:00:27.2]} 25. Nc4 {[%clk
0:00:39.1]} 25... Nd2 {[%clk 0:00:22.8]} 26. Nxd2 {[%clk 0:00:37]} 26... Rxd2
{[%clk 0:00:23.7]} 27. Be5 {[%clk 0:00:35.9]} 27... Bxe3 {[%clk 0:00:21.7]} 28.
Rc3 {[%clk 0:00:29.4]} 28... Bxf2+ {[%clk 0:00:17.8]} 29. Rxf2 {[%clk
0:00:28.7]} 29... Rd1+ {[%clk 0:00:08.9]} 30. Rf1 {[%clk 0:00:28.4]} 30... Rxf1+
{[%clk 0:00:07.5]} 31. Kxf1 {[%clk 0:00:29.3]} 31... Qxb2 {[%clk 0:00:07.4]} 32.
Qf3 {[%clk 0:00:23.6]} 32... Qb1+ {[%clk 0:00:06]} 33. Kf2 {[%clk 0:00:20.9]}
33... f6 {[%clk 0:00:06.3]} 34. Bd6 {[%clk 0:00:17.3]} 34... Rd8 {[%clk
0:00:03.2]} 35. Rd3 {[%clk 0:00:07.3]} 35... Qa2+ {[%clk 0:00:03.3]} 36. Kg3
{[%clk 0:00:06.2]} 1-0

[Event "*** SCC Grand Prix: Titled Tuesday Blitz"]
[Site "Chess.com"]
[Date "2020.07.14"]
[Round "3"]
[White "Igor_Lysyj"]
[Black "Houdinovic"]
[Result "1-0"]
[WhiteElo "2814"]
[BlackElo "2597"]
[TimeControl "180+1"]
[EndTime "10:28:58 PDT"]
[Termination "Igor_Lysyj won by resignation"]

1. d4 {[%clk 0:03:00.9]} 1... Nf6 {[%clk 0:02:59.4]} 2. c4 {[%clk 0:03:00.4]}
2... e6 {[%clk 0:02:59.1]} 3. Nf3 {[%clk 0:02:59.9]} 3... c5 {[%clk 0:02:59]} 4.
d5 {[%clk 0:02:58.8]} 4... exd5 {[%clk 0:02:59.9]} 5. cxd5 {[%clk 0:02:59]} 5...
d6 {[%clk 0:03:00.6]} 6. Nc3 {[%clk 0:02:59.2]} 6... g6 {[%clk 0:03:00]} 7. Bf4
{[%clk 0:02:58.5]} 7... a6 {[%clk 0:03:00]} 8. a4 {[%clk 0:02:57.7]} 8... Bg7
{[%clk 0:02:59.8]} 9. h3 {[%clk 0:02:57.5]} 9... O-O {[%clk 0:02:59.7]} 10. e3
{[%clk 0:02:57.3]} 10... Ne8 {[%clk 0:02:58.2]} 11. Be2 {[%clk 0:02:56.4]} 11...
Nd7 {[%clk 0:02:58.3]} 12. O-O {[%clk 0:02:56]} 12... Qe7 {[%clk 0:02:31.8]} 13.
Qc2 {[%clk 0:02:52]} 13... Rb8 {[%clk 0:02:29.5]} 14. a5 {[%clk 0:02:50.7]}
14... f5 {[%clk 0:02:23.8]} 15. Rfe1 {[%clk 0:02:45]} 15... Ne5 {[%clk
0:02:11.2]} 16. Nd2 {[%clk 0:02:42.6]} 16... Nc7 {[%clk 0:01:49.2]} 17. Bh2
{[%clk 0:02:41.7]} 17... Bd7 {[%clk 0:01:48.2]} 18. Rab1 {[%clk 0:02:32.7]}
18... Nb5 {[%clk 0:01:31]} 19. Bf1 {[%clk 0:02:29.4]} 19... Rbc8 {[%clk
0:01:22.6]} 20. Qb3 {[%clk 0:02:24.7]} 20... Qe8 {[%clk 0:01:15.8]} 21. f4
{[%clk 0:02:21.7]} 21... Nf7 {[%clk 0:00:59]} 22. Nc4 {[%clk 0:02:19.1]} 22...
Nxc3 {[%clk 0:00:39.7]} 23. bxc3 {[%clk 0:02:18.1]} 23... Bb5 {[%clk 0:00:40.4]}
24. Qc2 {[%clk 0:02:10.1]} 24... Rc7 {[%clk 0:00:25.4]} 25. e4 {[%clk
0:01:50.2]} 25... fxe4 {[%clk 0:00:23.4]} 26. Rxe4 {[%clk 0:01:46.9]} 26... Qd8
{[%clk 0:00:22.3]} 27. Rbe1 {[%clk 0:01:41]} 27... Qf6 {[%clk 0:00:21.8]} 28.
R1e3 {[%clk 0:01:32.8]} 28... Qf5 {[%clk 0:00:15.8]} 29. Qd2 {[%clk 0:01:23.1]}
29... Rd8 {[%clk 0:00:05.3]} 30. g4 {[%clk 0:01:22]} 30... Qf6 {[%clk
0:00:02.4]} 31. Re6 {[%clk 0:01:07.8]} 31... Qh4 {[%clk 0:00:02.7]} 32. Bg3
{[%clk 0:01:04.5]} 32... Qh6 {[%clk 0:00:02.9]} 33. Kg2 {[%clk 0:01:00.1]} 33...
Bf8 {[%clk 0:00:02.5]} 34. g5 {[%clk 0:00:55]} 34... Qg7 {[%clk 0:00:02.9]} 35.
Be2 {[%clk 0:00:52.8]} 35... Rdd7 {[%clk 0:00:03.3]} 36. h4 {[%clk 0:00:51]}
36... Re7 {[%clk 0:00:03.8]} 37. Nb6 {[%clk 0:00:47.9]} 37... Nd8 {[%clk
0:00:03.1]} 38. f5 {[%clk 0:00:31.7]} 38... gxf5 {[%clk 0:00:02.8]} 39. Bxd6
{[%clk 0:00:27.3]} 39... Rxe6 {[%clk 0:00:02.4]} 40. dxe6 {[%clk 0:00:27.2]}
40... Bxd6 {[%clk 0:00:02.3]} 41. Qxd6 {[%clk 0:00:26.7]} 41... Qe7 {[%clk
0:00:03.1]} 42. Qxc7 {[%clk 0:00:16.1]} 42... Qd7 {[%clk 0:00:02.7]} 1-0

[Event "*** SCC Grand Prix: Titled Tuesday Blitz"]
[Site "Chess.com"]
[Date "2020.07.14"]
[Round "3"]
[White "Raja3401"]
[Black "RoelandPruijssers"]
[Result "0-1"]
[WhiteElo "2770"]
[BlackElo "2603"]
[TimeControl "180+1"]
[EndTime "10:29:00 PDT"]
[Termination "RoelandPruijssers won by resignation"]

1. e4 {[%clk 0:03:00.9]} 1... d5 {[%clk 0:02:59.6]} 2. exd5 {[%clk 0:03:00.8]}
2... Qxd5 {[%clk 0:03:00.1]} 3. Nc3 {[%clk 0:03:01.5]} 3... Qa5 {[%clk
0:03:00.1]} 4. d4 {[%clk 0:02:57]} 4... Nf6 {[%clk 0:03:00.2]} 5. Nf3 {[%clk
0:02:57.3]} 5... Bf5 {[%clk 0:03:00.3]} 6. Bc4 {[%clk 0:02:55.5]} 6... e6 {[%clk
0:03:00.1]} 7. Qe2 {[%clk 0:02:52.9]} 7... Bb4 {[%clk 0:02:44.5]} 8. O-O {[%clk
0:02:43.8]} 8... O-O {[%clk 0:02:31.9]} 9. Bd2 {[%clk 0:02:43.6]} 9... Nc6
{[%clk 0:02:20.6]} 10. a3 {[%clk 0:02:38.3]} 10... Bxc3 {[%clk 0:02:20.6]} 11.
Bxc3 {[%clk 0:02:39.2]} 11... Qb6 {[%clk 0:02:21.1]} 12. Bb3 {[%clk 0:02:06.1]}
12... Ne4 {[%clk 0:02:08.9]} 13. Be1 {[%clk 0:01:39.1]} 13... Nxd4 {[%clk
0:02:07]} 14. Nxd4 {[%clk 0:01:40]} 14... Qxd4 {[%clk 0:02:07.2]} 15. Rd1 {[%clk
0:01:39.2]} 15... Qxb2 {[%clk 0:02:05.3]} 16. f3 {[%clk 0:01:33.1]} 16... Nc3
{[%clk 0:02:01.7]} 17. Bxc3 {[%clk 0:01:28]} 17... Qxc3 {[%clk 0:02:02.4]} 18.
Rd7 {[%clk 0:01:26]} 18... Rad8 {[%clk 0:01:58]} 19. Rfd1 {[%clk 0:01:25.3]}
19... Rxd7 {[%clk 0:01:55.1]} 20. Rxd7 {[%clk 0:01:26.2]} 20... Qc5+ {[%clk
0:01:55.5]} 21. Qf2 {[%clk 0:01:22.1]} 21... Qxa3 {[%clk 0:01:38.8]} 22. g4
{[%clk 0:01:18.5]} 22... Bg6 {[%clk 0:01:32.5]} 23. Rxc7 {[%clk 0:01:18.3]}
23... b6 {[%clk 0:01:32.9]} 24. Qd4 {[%clk 0:01:09.3]} 24... Qa5 {[%clk
0:01:27.3]} 25. Kg2 {[%clk 0:01:03.3]} 25... h5 {[%clk 0:01:01.6]} 26. Bxe6
{[%clk 0:00:52.6]} 26... Qe1 {[%clk 0:01:00.8]} 27. Bf5 {[%clk 0:00:41.6]} 27...
Qe2+ {[%clk 0:00:56.6]} 28. Kg3 {[%clk 0:00:40.3]} 28... h4+ {[%clk 0:00:52.2]}
29. Kh3 {[%clk 0:00:37]} 29... Qxf3+ {[%clk 0:00:50.2]} 30. Kxh4 {[%clk
0:00:37.4]} 30... Bxf5 {[%clk 0:00:47.1]} 31. gxf5 {[%clk 0:00:38.3]} 31... Qxf5
{[%clk 0:00:43.4]} 32. Rxa7 {[%clk 0:00:32.5]} 32... Qxc2 {[%clk 0:00:43.3]} 33.
Qf4 {[%clk 0:00:28.2]} 33... b5 {[%clk 0:00:40.4]} 34. Rb7 {[%clk 0:00:26.7]}
34... Qe2 {[%clk 0:00:31.7]} 35. Rc7 {[%clk 0:00:15.5]} 35... Qe6 {[%clk
0:00:24.4]} 36. Rc5 {[%clk 0:00:13.2]} 36... Qe2 {[%clk 0:00:21.4]} 37. Rg5
{[%clk 0:00:12.7]} 37... Rc8 {[%clk 0:00:18.1]} 38. Qg3 {[%clk 0:00:08.8]} 38...
Rc4+ {[%clk 0:00:16.8]} 39. Kh3 {[%clk 0:00:07.6]} 39... Qe6+ {[%clk 0:00:16.8]}
40. Kg2 {[%clk 0:00:06]} 40... Rc2+ {[%clk 0:00:17.3]} 41. Kf3 {[%clk
0:00:05.4]} 41... Rc3+ {[%clk 0:00:16.2]} 0-1

[Event "*** SCC Grand Prix: Titled Tuesday Blitz"]
[Site "Chess.com"]
[Date "2020.07.14"]
[Round "3"]
[White "Chessdemon2019"]
[Black "Nf3c5"]
[Result "1-0"]
[WhiteElo "2354"]
[BlackElo "2514"]
[TimeControl "180+1"]
[EndTime "10:29:00 PDT"]
[Termination "Chessdemon2019 won on time"]

1. e4 {[%clk 0:03:00.9]} 1... c5 {[%clk 0:02:58.5]} 2. Nf3 {[%clk 0:03:00.3]}
2... d6 {[%clk 0:02:56.5]} 3. d4 {[%clk 0:03:00.3]} 3... cxd4 {[%clk 0:02:57.4]}
4. Nxd4 {[%clk 0:03:01.2]} 4... Nf6 {[%clk 0:02:57.6]} 5. f3 {[%clk 0:03:01.4]}
5... a6 {[%clk 0:02:55.8]} 6. c4 {[%clk 0:03:01.4]} 6... g6 {[%clk 0:02:51.6]}
7. Be3 {[%clk 0:02:59.7]} 7... Bg7 {[%clk 0:02:51.7]} 8. Nc3 {[%clk 0:02:59.4]}
8... O-O {[%clk 0:02:52]} 9. Qd2 {[%clk 0:02:59.5]} 9... Nc6 {[%clk 0:02:49.1]}
10. Be2 {[%clk 0:02:59]} 10... Bd7 {[%clk 0:02:48.4]} 11. O-O {[%clk 0:02:57.9]}
11... Nxd4 {[%clk 0:02:45.8]} 12. Bxd4 {[%clk 0:02:57.7]} 12... a5 {[%clk
0:02:46.7]} 13. Rab1 {[%clk 0:02:55]} 13... Bc6 {[%clk 0:02:46.5]} 14. Rfc1
{[%clk 0:02:53.5]} 14... Nd7 {[%clk 0:02:46.7]} 15. Be3 {[%clk 0:02:52.6]} 15...
Nc5 {[%clk 0:02:45]} 16. b3 {[%clk 0:02:52.6]} 16... f5 {[%clk 0:02:31.2]} 17.
exf5 {[%clk 0:02:47.7]} 17... gxf5 {[%clk 0:02:30.9]} 18. Nd5 {[%clk 0:02:44.7]}
18... e6 {[%clk 0:02:22.3]} 19. Bg5 {[%clk 0:02:44.5]} 19... Qd7 {[%clk
0:02:13]} 20. Ne7+ {[%clk 0:02:39.4]} 20... Kh8 {[%clk 0:02:12.8]} 21. Nxc6
{[%clk 0:02:39.5]} 21... bxc6 {[%clk 0:02:01.6]} 22. Be3 {[%clk 0:02:38.5]}
22... Qe7 {[%clk 0:01:53.9]} 23. Rd1 {[%clk 0:02:36.4]} 23... Rad8 {[%clk
0:01:53.1]} 24. Bg5 {[%clk 0:02:35.9]} 24... Bf6 {[%clk 0:01:52.8]} 25. Bxf6+
{[%clk 0:02:28.8]} 25... Qxf6 {[%clk 0:01:49.9]} 26. Qxa5 {[%clk 0:02:29.1]}
26... Rg8 {[%clk 0:01:47.6]} 27. Qd2 {[%clk 0:02:22.7]} 27... e5 {[%clk
0:01:46]} 28. b4 {[%clk 0:02:19.9]} 28... Ne6 {[%clk 0:01:45.7]} 29. b5 {[%clk
0:02:17.8]} 29... c5 {[%clk 0:01:32.9]} 30. Kh1 {[%clk 0:02:09]} 30... Rg7
{[%clk 0:01:30.7]} 31. b6 {[%clk 0:02:01.3]} 31... Nd4 {[%clk 0:01:30.4]} 32.
Rb2 {[%clk 0:01:41.1]} 32... Rg6 {[%clk 0:01:06]} 33. b7 {[%clk 0:01:37.6]}
33... Rb8 {[%clk 0:01:05.3]} 34. a4 {[%clk 0:01:31.4]} 34... Qg7 {[%clk
0:00:58.8]} 35. Bd3 {[%clk 0:01:06.9]} 35... Rxb7 {[%clk 0:00:53]} 36. Rxb7
{[%clk 0:01:06.8]} 36... Qxb7 {[%clk 0:00:53.9]} 37. Rb1 {[%clk 0:01:07.2]}
37... Qc8 {[%clk 0:00:48.3]} 38. a5 {[%clk 0:01:05.6]} 38... Qc6 {[%clk
0:00:36.9]} 39. Qf2 {[%clk 0:00:50.1]} 39... Kg7 {[%clk 0:00:35.4]} 40. Rb6
{[%clk 0:00:44.8]} 40... Qa4 {[%clk 0:00:35.1]} 41. a6 {[%clk 0:00:40.3]} 41...
Qa5 {[%clk 0:00:25.7]} 42. Rb7+ {[%clk 0:00:39.5]} 42... Kg8 {[%clk 0:00:25.8]}
43. a7 {[%clk 0:00:38.1]} 43... Qa1+ {[%clk 0:00:09.7]} 44. Qf1 {[%clk
0:00:35.6]} 44... Qa6 {[%clk 0:00:05]} 45. Rb8+ {[%clk 0:00:35.2]} 45... Kg7
{[%clk 0:00:05.5]} 46. a8=Q {[%clk 0:00:35.6]} 46... Qxa8 {[%clk 0:00:05.8]} 47.
Rxa8 {[%clk 0:00:35.9]} 1-0

[Event "*** SCC Grand Prix: Titled Tuesday Blitz"]
[Site "Chess.com"]
[Date "2020.07.14"]
[Round "3"]
[White "bocah_sakit"]
[Black "Firouzja2003"]
[Result "0-1"]
[WhiteElo "2699"]
[BlackElo "3076"]
[TimeControl "180+1"]
[EndTime "10:29:01 PDT"]
[Termination "Firouzja2003 won by resignation"]

1. e4 {[%clk 0:03:00.9]} 1... c5 {[%clk 0:02:59.1]} 2. Nf3 {[%clk 0:03:00.2]}
2... d6 {[%clk 0:02:58.8]} 3. d4 {[%clk 0:02:59.7]} 3... cxd4 {[%clk 0:02:59.7]}
4. Nxd4 {[%clk 0:03:00]} 4... Nf6 {[%clk 0:02:58.8]} 5. Nc3 {[%clk 0:03:00.2]}
5... Nc6 {[%clk 0:02:59.2]} 6. Bg5 {[%clk 0:02:59.7]} 6... e6 {[%clk 0:02:58.7]}
7. f4 {[%clk 0:02:59.9]} 7... Qb6 {[%clk 0:02:56.8]} 8. Nb3 {[%clk 0:02:42.8]}
8... h6 {[%clk 0:02:55.5]} 9. Bxf6 {[%clk 0:02:41.4]} 9... gxf6 {[%clk
0:02:56.4]} 10. Qf3 {[%clk 0:02:33.5]} 10... a6 {[%clk 0:02:49.4]} 11. O-O-O
{[%clk 0:02:32.2]} 11... Bd7 {[%clk 0:02:47]} 12. Kb1 {[%clk 0:02:29.7]} 12...
Rc8 {[%clk 0:02:44.3]} 13. Qh5 {[%clk 0:02:24.8]} 13... Qc7 {[%clk 0:02:29.5]}
14. Bd3 {[%clk 0:02:17.2]} 14... b5 {[%clk 0:02:27.2]} 15. Rhe1 {[%clk
0:02:15.6]} 15... b4 {[%clk 0:02:19.5]} 16. Nd5 {[%clk 0:01:55.8]} 16... exd5
{[%clk 0:02:12.4]} 17. exd5+ {[%clk 0:01:56.7]} 17... Ne7 {[%clk 0:02:12.3]} 18.
Nd4 {[%clk 0:01:50.8]} 18... Bg7 {[%clk 0:02:02.6]} 19. Bf5 {[%clk 0:01:27.6]}
19... Kf8 {[%clk 0:01:53.9]} 20. Bxd7 {[%clk 0:01:20.2]} 20... Qxd7 {[%clk
0:01:54.8]} 21. f5 {[%clk 0:00:53]} 21... Rc5 {[%clk 0:01:43.6]} 22. g4 {[%clk
0:00:20.6]} 22... Rxd5 {[%clk 0:01:40.5]} 23. Ne2 {[%clk 0:00:19]} 23... Re5
{[%clk 0:01:35.7]} 24. Nf4 {[%clk 0:00:18.8]} 24... d5 {[%clk 0:01:33.2]} 25.
Nd3 {[%clk 0:00:16.3]} 25... Qd6 {[%clk 0:01:29.3]} 26. Nxe5 {[%clk 0:00:07]}
26... fxe5 {[%clk 0:01:30.2]} 27. h4 {[%clk 0:00:07.7]} 27... a5 {[%clk
0:01:24.8]} 28. g5 {[%clk 0:00:07.5]} 28... hxg5 {[%clk 0:01:23.6]} 29. Qxg5
{[%clk 0:00:08.4]} 29... Qf6 {[%clk 0:01:18.8]} 30. Qg3 {[%clk 0:00:07.3]} 30...
Rxh4 {[%clk 0:01:15.3]} 31. c3 {[%clk 0:00:02.5]} 31... bxc3 {[%clk 0:01:13.3]}
32. Qxc3 {[%clk 0:00:03.4]} 32... e4 {[%clk 0:01:10.3]} 33. Qb3 {[%clk
0:00:02.1]} 33... Qe5 {[%clk 0:01:05.8]} 34. Rc1 {[%clk 0:00:01.7]} 34... Rh2
{[%clk 0:01:00.8]} 35. Rc2 {[%clk 0:00:01.9]} 35... Rxc2 {[%clk 0:01:00]} 36.
Qxc2 {[%clk 0:00:02.8]} 36... Qxf5 {[%clk 0:00:56.2]} 37. Rc1 {[%clk 0:00:02.8]}
37... e3 {[%clk 0:00:54.8]} 38. a3 {[%clk 0:00:02.8]} 38... d4 {[%clk
0:00:52.9]} 39. Qxf5 {[%clk 0:00:02.7]} 39... Nxf5 {[%clk 0:00:53.8]} 40. Kc2
{[%clk 0:00:03.6]} 40... Nh4 {[%clk 0:00:48.3]} 41. Kd3 {[%clk 0:00:03.7]} 41...
Be5 {[%clk 0:00:48.3]} 42. Ke4 {[%clk 0:00:03.7]} 42... f6 {[%clk 0:00:46.9]}
43. Rh1 {[%clk 0:00:04]} 43... Ng2 {[%clk 0:00:46]} 44. Kf3 {[%clk 0:00:04.2]}
44... Nf4 {[%clk 0:00:46]} 45. b4 {[%clk 0:00:03.3]} 45... axb4 {[%clk
0:00:45.3]} 46. axb4 {[%clk 0:00:04.2]} 46... e2 {[%clk 0:00:45.1]} 47. b5
{[%clk 0:00:04]} 47... d3 {[%clk 0:00:44.9]} 48. Ke3 {[%clk 0:00:04.4]} 48...
Ng2+ {[%clk 0:00:43.7]} 49. Kxd3 {[%clk 0:00:03.4]} 49... e1=Q {[%clk
0:00:44.1]} 50. Rxe1 {[%clk 0:00:03.7]} 50... Nxe1+ {[%clk 0:00:45]} 0-1